bitfinex-derivatives/quotes_BTCF0:USTF0_20260104
["timestamp","ask_amount","ask_price","bid_price","bid_amount"]
[1767503072930,0.08583513,91427.0,91418.0,0.010943]
[1767503073135,0.00960057,91429.0,91418.0,0.010943]
[1767503074828,0.00960057,91429.0,91420.0,0.010943]
[1767503075033,0.09304,91443.0,91426.0,0.00969402]
[1767503075228,0.09304,91443.0,91428.0,0.010942]
[1767503076235,0.09320412,91443.0,91428.0,0.010942]
[1767503077730,0.00016412,91443.0,91428.0,0.010942]
[1767503082941,0.01110412,91443.0,91425.0,0.010942]
[1767503084042,0.01110412,91443.0,91427.0,0.00969402]
[1767503084043,0.00016412,91443.0,91427.0,0.00969402]
[1767503084341,0.00016412,91443.0,91428.0,0.00969402]
[1767503085351,0.00016412,91443.0,91430.0,0.010942]
[1767503088547,0.00016412,91443.0,91433.0,0.00969402]
[1767503092543,0.00016412,91443.0,91434.0,0.010941]
[1767503092938,0.09304,91448.0,91434.0,0.010941]
[1767503092939,0.09304,91448.0,91435.0,0.00969402]
[1767503093140,0.02556239,91447.0,91435.0,0.00969402]
[1767503093340,0.02556239,91446.0,91435.0,0.00969402]
[1767503093539,0.09304,91448.0,91435.0,0.00969402]
[1767503093747,0.02556266,91447.0,91435.0,0.00969402]
[1767503093947,0.02556266,91446.0,91432.0,0.07657351]
[1767503094148,0.09304,91448.0,91432.0,0.07657351]
[1767503094350,0.02556325,91447.0,91432.0,0.07657351]
[1767503094651,0.02556325,91446.0,91432.0,0.07657351]
[1767503094849,0.09304,91448.0,91432.0,0.07657351]
[1767503095049,0.02556326,91447.0,91432.0,0.07657351]
[1767503095350,0.02556326,91446.0,91432.0,0.07657351]
[1767503095540,0.02556326,91445.0,91432.0,0.07657351]
[1767503095737,0.09304,91448.0,91432.0,0.07657351]
[1767503095941,0.0255643,91447.0,91432.0,0.07657351]
[1767503096149,0.0255643,91446.0,91432.0,0.07657351]
[1767503096343,0.0255643,91445.0,91432.0,0.07657351]
[1767503096544,0.09304,91448.0,91432.0,0.07657351]
[1767503096743,0.02556883,91447.0,91432.0,0.07657351]
[1767503096949,0.02556883,91446.0,91432.0,0.07657351]
[1767503097150,0.02556883,91445.0,91433.0,0.00969402]
[1767503097349,0.09304,91448.0,91433.0,0.00969402]
[1767503097549,0.02557063,91447.0,91433.0,0.00969402]
[1767503097750,0.02557063,91446.0,91433.0,0.00969402]
[1767503098053,0.02557063,91445.0,91433.0,0.00969402]
[1767503098351,0.01094,91447.0,91432.0,0.06687949]
[1767503098652,0.02557398,91446.0,91432.0,0.06687949]
[1767503098848,0.02557398,91445.0,91432.0,0.06687949]
[1767503099047,0.01094,91447.0,91432.0,0.06687949]
[1767503099349,0.02557402,91446.0,91432.0,0.06687949]
[1767503099650,0.02557402,91445.0,91432.0,0.06687949]
[1767503099844,0.01094,91447.0,91432.0,0.06687949]
[1767503100044,0.02557712,91446.0,91432.0,0.06687949]
[1767503100244,0.02557712,91445.0,91432.0,0.06687949]
[1767503100451,0.02557712,91444.0,91432.0,0.06687949]
[1767503100650,0.02557712,91444.0,91430.0,0.00969402]
[1767503101156,0.01094,91443.0,91430.0,0.00969402]
[1767503101451,0.01094,91446.0,91427.0,0.06831037]
[1767503101646,0.02558792,91445.0,91429.0,0.010942]
[1767503101945,0.02558792,91444.0,91429.0,0.010942]
[1767503102254,0.01094,91446.0,91429.0,0.010942]
[1767503102449,0.09304,91448.0,91433.0,0.00997843]
[1767503102638,0.02559288,91447.0,91437.0,0.00997843]
[1767503102838,0.09304,91448.0,91437.0,0.00997843]
[1767503103153,0.02559293,91447.0,91436.0,0.05736837]
[1767503103449,0.02559293,91446.0,91433.0,0.00997843]
[1767503103649,0.09304,91448.0,91433.0,0.00997843]
[1767503103839,0.02559942,91447.0,91433.0,0.00997843]
[1767503104039,0.02559942,91446.0,91433.0,0.00997843]
[1767503104249,0.02560953,91445.0,91433.0,0.00997843]
[1767503104557,0.09304,91448.0,91433.0,0.00997843]
[1767503104752,0.0256095,91447.0,91433.0,0.00997843]
[1767503104952,0.0256095,91446.0,91433.0,0.00997843]
[1767503105255,0.0256095,91445.0,91433.0,0.00997843]
[1767503105439,0.09304,91448.0,91433.0,0.00997843]
[1767503105641,0.02561012,91447.0,91433.0,0.00997843]
[1767503105844,0.02561012,91446.0,91433.0,0.00997843]
[1767503106057,0.02561012,91445.0,91433.0,0.00997843]
[1767503106250,0.09304,91448.0,91433.0,0.00997843]
[1767503106557,0.02561261,91447.0,91433.0,0.00997843]
[1767503106757,0.02561261,91446.0,91433.0,0.00997843]
[1767503106946,0.02561261,91445.0,91433.0,0.00997843]
[1767503107146,0.09304,91448.0,91433.0,0.00997843]
[1767503107346,0.09304,91448.0,91430.0,0.05736837]
[1767503107347,0.03655396,91447.0,91430.0,0.05736837]
[1767503107558,0.02561396,91446.0,91430.0,0.05736837]
[1767503107765,0.02561396,91445.0,91430.0,0.05736837]
[1767503107952,0.01094,91447.0,91430.0,0.05736837]
[1767503108254,0.02561401,91446.0,91430.0,0.05736837]
[1767503108445,0.02561401,91445.0,91430.0,0.05736837]
[1767503108756,0.01094,91447.0,91430.0,0.05736837]
[1767503108955,0.02561435,91446.0,91430.0,0.05736837]
[1767503109156,0.02561435,91445.0,91430.0,0.05736837]
[1767503109348,0.01094,91447.0,91430.0,0.05736837]
[1767503109646,0.025615,91446.0,91430.0,0.05736837]
[1767503109845,0.025615,91445.0,91430.0,0.05736837]
[1767503110040,0.02561555,91444.0,91430.0,0.05736837]
[1767503110245,0.01094,91447.0,91430.0,0.05736837]
[1767503110446,0.02561963,91446.0,91430.0,0.05736837]
[1767503110649,0.02561963,91445.0,91430.0,0.05736837]
[1767503110849,0.02561963,91444.0,91430.0,0.05736837]
[1767503111050,0.01094,91447.0,91430.0,0.05736837]
[1767503111248,0.02562064,91446.0,91430.0,0.05736837]
[1767503111454,0.02562064,91445.0,91430.0,0.05736837]
[1767503111652,0.02562064,91444.0,91430.0,0.05736837]
[1767503111957,0.01094,91447.0,91430.0,0.05736837]
[1767503112149,0.02562101,91446.0,91430.0,0.05736837]
[1767503112459,0.02562101,91445.0,91430.0,0.05736837]
[1767503112642,0.02562101,91444.0,91430.0,0.05736837]
[1767503112848,0.01094,91447.0,91430.0,0.05736837]
[1767503113145,0.02560596,91446.0,91430.0,0.05736837]
[1767503113342,0.02560596,91445.0,91430.0,0.0782888]
[1767503113657,0.02560596,91444.0,91430.0,0.0782888]
[1767503113852,0.01094,91447.0,91430.0,0.0782888]
[1767503114051,0.02560692,91446.0,91430.0,0.0782888]
[1767503114255,0.02560692,91445.0,91430.0,0.0782888]
[1767503114446,0.02560692,91444.0,91430.0,0.0782888]
[1767503114647,0.01094,91447.0,91430.0,0.0782888]
[1767503114847,0.02560867,91446.0,91430.0,0.0782888]
[1767503115047,0.02560867,91445.0,91430.0,0.0782888]
[1767503115248,0.02560867,91444.0,91430.0,0.0782888]
[1767503115457,0.01094,91447.0,91430.0,0.0782888]
[1767503115647,0.02560953,91446.0,91430.0,0.0782888]
[1767503115847,0.02560953,91445.0,91430.0,0.0782888]
[1767503116059,0.02560953,91444.0,91430.0,0.0782888]
[1767503116356,0.01094,91447.0,91430.0,0.0782888]
[1767503116657,0.02561066,91446.0,91430.0,0.0782888]
[1767503116860,0.02561066,91445.0,91430.0,0.0782888]
[1767503117058,0.02561066,91444.0,91430.0,0.0782888]
[1767503117253,0.01094,91447.0,91430.0,0.0782888]
[1767503117461,0.02561152,91446.0,91430.0,0.0782888]
[1767503117655,0.02561152,91445.0,91430.0,0.0782888]
[1767503117959,0.02561152,91444.0,91430.0,0.0782888]
[1767503118258,0.01094,91447.0,91430.0,0.0782888]
[1767503118448,0.02558157,91446.0,91430.0,0.0782888]
[1767503118645,0.02558157,91445.0,91430.0,0.0782888]
[1767503118845,0.02558157,91444.0,91430.0,0.0782888]
[1767503119059,0.01094,91447.0,91430.0,0.0782888]
[1767503119358,0.0255816,91446.0,91430.0,0.0782888]
[1767503119558,0.0255816,91445.0,91430.0,0.0782888]
[1767503119762,0.0255816,91444.0,91430.0,0.0782888]
[1767503120059,0.01094,91447.0,91430.0,0.0782888]
[1767503120255,0.02558178,91446.0,91430.0,0.0782888]
[1767503120452,0.02558178,91445.0,91430.0,0.0782888]
[1767503120653,0.02558178,91444.0,91430.0,0.0782888]
[1767503120952,0.01094,91447.0,91430.0,0.0782888]
[1767503121152,0.02558163,91446.0,91430.0,0.0782888]
[1767503121353,0.02558163,91445.0,91430.0,0.0782888]
[1767503121554,0.02558163,91444.0,91430.0,0.0782888]
[1767503121755,0.01094,91447.0,91430.0,0.0782888]
[1767503121955,0.02558205,91446.0,91430.0,0.0782888]
[1767503122156,0.02558205,91445.0,91430.0,0.0782888]
[1767503122357,0.02558205,91444.0,91430.0,0.0782888]
[1767503122556,0.01094,91447.0,91430.0,0.0782888]
[1767503122764,0.02558211,91446.0,91430.0,0.0782888]
[1767503122957,0.02558211,91445.0,91430.0,0.0782888]
[1767503123158,0.02558211,91444.0,91430.0,0.0782888]
[1767503123458,0.01094,91447.0,91430.0,0.0782888]
[1767503123659,0.02558821,91446.0,91430.0,0.0782888]
[1767503123860,0.02558821,91445.0,91430.0,0.0782888]
[1767503124060,0.02558821,91444.0,91430.0,0.0782888]
[1767503124254,0.01094,91447.0,91430.0,0.0782888]
[1767503124453,0.02558604,91446.0,91430.0,0.0782888]
[1767503124655,0.02558604,91445.0,91430.0,0.0782888]
[1767503124856,0.02558604,91444.0,91430.0,0.0782888]
[1767503125056,0.01094,91447.0,91430.0,0.0782888]
[1767503125257,0.02558561,91446.0,91430.0,0.0782888]
[1767503125554,0.01094,91447.0,91430.0,0.0782888]
[1767503125555,0.02558561,91445.0,91430.0,0.0782888]
[1767503125753,0.02558561,91444.0,91430.0,0.0782888]
[1767503125956,0.01094,91447.0,91430.0,0.0782888]
[1767503126161,0.02558448,91446.0,91430.0,0.0782888]
[1767503126359,0.02558448,91445.0,91430.0,0.0782888]
[1767503126565,0.02558448,91444.0,91430.0,0.0782888]
[1767503126867,0.01094,91447.0,91430.0,0.0782888]
[1767503127067,0.02558375,91446.0,91430.0,0.0782888]
[1767503127268,0.02558375,91445.0,91430.0,0.0782888]
[1767503127468,0.02558375,91444.0,91430.0,0.0782888]
[1767503127664,0.01094,91447.0,91430.0,0.0782888]
[1767503127965,0.02558062,91446.0,91430.0,0.0782888]
[1767503128164,0.02558062,91445.0,91430.0,0.0782888]
[1767503128364,0.02558062,91444.0,91430.0,0.0782888]
[1767503128565,0.01094,91447.0,91430.0,0.0782888]
[1767503128766,0.02558031,91446.0,91430.0,0.0782888]
[1767503128964,0.02558031,91445.0,91430.0,0.0782888]
[1767503129166,0.02558031,91444.0,91430.0,0.0782888]
[1767503129465,0.01094,91447.0,91430.0,0.0782888]
[1767503129653,0.02558026,91446.0,91431.0,0.00997843]
[1767503129862,0.02558026,91445.0,91431.0,0.00997843]
[1767503130167,0.02558026,91444.0,91431.0,0.00997843]
[1767503130370,0.01094,91447.0,91431.0,0.00997843]
[1767503130675,0.02558029,91446.0,91431.0,0.00997843]
[1767503130875,0.02558029,91445.0,91431.0,0.00997843]
[1767503131074,0.02558029,91444.0,91431.0,0.00997843]
[1767503131275,0.01094,91447.0,91431.0,0.00997843]
[1767503131573,0.02558026,91446.0,91431.0,0.00997843]
[1767503131774,0.02558026,91445.0,91431.0,0.00997843]
[1767503131973,0.02558026,91444.0,91431.0,0.00997843]
[1767503132175,0.02558022,91443.0,91431.0,0.00997843]
[1767503132374,0.01094,91447.0,91431.0,0.00997843]
[1767503132375,0.02558022,91442.0,91431.0,0.00997843]
[1767503132574,0.02558022,91441.0,91431.0,0.00997843]
[1767503132775,0.01094,91447.0,91431.0,0.00997843]
[1767503132977,0.02558018,91446.0,91431.0,0.00997843]
[1767503133277,0.02558018,91445.0,91431.0,0.00997843]
[1767503133478,0.02558018,91444.0,91431.0,0.00997843]
[1767503133776,0.02558018,91443.0,91431.0,0.00997843]
[1767503133975,0.02558018,91442.0,91431.0,0.00997843]
[1767503134278,0.02558018,91441.0,91431.0,0.00997843]
[1767503134479,0.01094,91447.0,91431.0,0.00997843]
[1767503134679,0.02558021,91446.0,91431.0,0.00997843]
[1767503134883,0.02558021,91445.0,91430.0,0.06831037]
[1767503135070,0.02558021,91444.0,91430.0,0.06831037]
[1767503135270,0.02558021,91443.0,91430.0,0.06831037]
[1767503135569,0.02558021,91442.0,91430.0,0.06831037]
[1767503135770,0.02558021,91441.0,91430.0,0.06831037]
[1767503135970,0.01094,91447.0,91430.0,0.06831037]
[1767503136175,0.02558023,91446.0,91430.0,0.06831037]
[1767503136476,0.02558023,91445.0,91430.0,0.07757958]
[1767503136676,0.02558023,91444.0,91430.0,0.07757958]
[1767503136876,0.02558023,91443.0,91431.0,0.00926921]
[1767503137077,0.01094,91447.0,91431.0,0.00926921]
[1767503137372,0.01094,91447.0,91430.0,0.010942]
[1767503137574,0.010941,91435.0,91424.0,0.00016412]
[1767503137774,0.02033568,91435.0,91424.0,0.00016412]
[1767503138071,0.010941,91433.0,91424.0,0.00016412]
[1767503138278,0.010941,91433.0,91418.0,0.093]
[1767503138474,0.00939468,91435.0,91418.0,0.093]
[1767503138678,0.00939468,91435.0,91419.0,0.010943]
[1767503138880,0.010941,91436.0,91419.0,0.010943]
[1767503139376,0.02033568,91439.0,91419.0,0.010943]
[1767503139581,0.02033568,91439.0,91419.0,0.02021221]
[1767503139881,0.02033568,91439.0,91422.0,0.010943]
[1767503142283,0.07112896,91440.0,91424.0,0.02021121]
[1767503142485,0.07112896,91440.0,91425.0,0.00926921]
[1767503142873,0.07112896,91440.0,91426.0,0.010942]
[1767503145283,0.09146464,91440.0,91423.0,0.010943]
[1767503145483,0.010941,91438.0,91421.0,0.00926921]
[1767503145683,0.02033568,91438.0,91420.0,0.010943]
[1767503147185,0.00939468,91437.0,91418.0,0.05152171]
[1767503147377,0.07112896,91430.0,91420.0,0.010943]
[1767503148883,0.07112896,91430.0,91418.0,0.00016412]
[1767503149088,0.08052364,91430.0,91418.0,0.00016412]
[1767503151689,0.0588984,91429.0,91412.0,0.07859366]
[1767503151880,0.07112896,91422.0,91411.0,0.093]
[1767503152084,0.02033668,91425.0,91411.0,0.093]
[1767503152679,0.00939468,91425.0,91411.0,0.093]
[1767503154894,0.00939468,91425.0,91410.0,0.010944]
[1767503155192,0.0698404,91426.0,91410.0,0.103944]
[1767503155895,0.07112896,91420.0,91410.0,0.103944]
[1767503156988,0.0698404,91426.0,91410.0,0.103944]
[1767503157186,0.0698404,91426.0,91410.0,0.010944]
[1767503157495,0.00939468,91425.0,91410.0,0.010944]
[1767503158290,0.04950372,91426.0,91410.0,0.010944]
[1767503158595,0.04950372,91426.0,91412.0,0.010944]
[1767503160299,0.00016412,91427.0,91412.0,0.010944]
[1767503161494,0.00016412,91427.0,91414.0,0.010944]
[1767503162790,0.00016412,91427.0,91416.0,0.06475082]
[1767503163097,0.010941,91436.0,91421.0,0.00926667]
[1767503163488,0.02070383,91442.0,91424.0,0.02020867]
[1767503163684,0.09304,91440.0,91424.0,0.02020867]
[1767503163894,0.16416896,91440.0,91424.0,0.02020867]
[1767503164597,0.17510996,91440.0,91424.0,0.00926667]
[1767503165093,0.09304,91440.0,91424.0,0.00926667]
[1767503165299,0.16416896,91440.0,91425.0,0.010942]
[1767503165496,0.09304,91440.0,91428.0,0.010942]
[1767503166200,0.00016412,91441.0,91430.0,0.010942]
[1767503166402,0.00016412,91441.0,91430.0,0.02020867]
[1767503168692,0.09304,91449.0,91430.0,0.02020867]
[1767503168994,0.02515231,91448.0,91431.0,0.00926667]
[1767503169297,0.02515231,91447.0,91431.0,0.00926667]
[1767503169498,0.09304,91449.0,91431.0,0.00926667]
[1767503169692,0.03609159,91448.0,91431.0,0.00943079]
[1767503169891,0.02515159,91447.0,91431.0,0.00943079]
[1767503170087,0.01094,91448.0,91431.0,0.00943079]
[1767503170294,0.02515119,91447.0,91431.0,0.00943079]
[1767503170592,0.01094,91448.0,91431.0,0.00943079]
[1767503170792,0.02515088,91447.0,91431.0,0.00943079]
[1767503170996,0.01094,91448.0,91431.0,0.00943079]
[1767503171197,0.02515051,91447.0,91431.0,0.00943079]
[1767503171393,0.01094,91448.0,91431.0,0.00943079]
[1767503171589,0.0251503,91447.0,91437.0,0.010941]
[1767503171790,0.010938,91461.0,91444.0,0.00926667]
[1767503172097,0.00976383,91458.0,91440.0,0.010941]
[1767503172397,0.00976383,91456.0,91440.0,0.010941]
[1767503173592,0.00976383,91456.0,91439.0,0.093]
[1767503173801,0.00016403,91457.0,91444.0,0.01094]
[1767503175800,0.02070283,91456.0,91439.0,0.093]
[1767503176900,0.02070283,91456.0,91438.0,0.00926667]
[1767503177207,0.02070283,91456.0,91439.0,0.093]
[1767503178204,0.02070283,91456.0,91439.0,0.103941]
[1767503180300,0.00016403,91457.0,91441.0,0.01094]
[1767503181010,0.00992786,91457.0,91441.0,0.01094]
[1767503181200,0.02086686,91457.0,91441.0,0.01094]
[1767503183809,0.01110303,91457.0,91441.0,0.01094]
[1767503186917,0.02086686,91457.0,91441.0,0.01094]
[1767503187104,0.02086686,91457.0,91439.0,0.02020767]
[1767503188120,0.00976383,91456.0,91439.0,0.010941]
[1767503188405,0.07112896,91450.0,91439.0,0.010941]
[1767503188604,0.00976383,91456.0,91439.0,0.010941]
[1767503189513,0.010939,91455.0,91439.0,0.010941]
[1767503190514,0.010939,91453.0,91436.0,0.15819465]
[1767503191316,0.01094,91446.0,91434.0,0.093]
[1767503194416,0.01094,91446.0,91431.0,0.00995857]
[1767503194716,0.01094,91446.0,91432.0,0.00979445]
[1767503195216,0.01094,91446.0,91434.0,0.00979445]
[1767503195813,0.010939,91449.0,91438.0,0.03892429]
[1767503196016,0.010939,91449.0,91435.0,0.00979445]
[1767503197517,0.010939,91452.0,91437.0,0.00979445]
[1767503197916,0.010939,91452.0,91431.0,0.09316412]
[1767503197917,0.010939,91450.0,91431.0,0.10295857]
[1767503198117,0.010939,91450.0,91432.0,0.00979445]
[1767503199021,0.010939,91450.0,91433.0,0.00979445]
[1767503201631,0.01094,91448.0,91431.0,0.09316412]
[1767503203627,0.01094,91445.0,91431.0,0.09316412]
[1767503204822,0.01094,91443.0,91431.0,0.09316412]
[1767503205124,0.010941,91433.0,91418.0,0.00979445]
[1767503205323,0.010941,91433.0,91416.0,0.093]
[1767503205725,0.010941,91433.0,91417.0,0.00979445]
[1767503215827,0.010942,91428.0,91416.0,0.09316403]
[1767503216031,0.04747947,91427.0,91411.0,0.010944]
[1767503216237,0.04747947,91426.0,91411.0,0.010944]
[1767503218336,0.03798572,91426.0,91411.0,0.010944]
[1767503221236,0.010942,91431.0,91420.0,0.00914293]
[1767503221441,0.093,91432.0,91420.0,0.00914293]
[1767503222741,0.093,91432.0,91417.0,0.02008593]
[1767503223845,0.093,91432.0,91414.0,0.03892377]
[1767503224150,0.093,91432.0,91414.0,0.0480667]
[1767503224641,0.010942,91431.0,91415.0,0.010944]
[1767503224837,0.05045558,91431.0,91415.0,0.010944]
[1767503225242,0.093,91432.0,91418.0,0.010943]
[1767503227538,0.093,91432.0,91416.0,0.00914293]
[1767503228841,0.093,91432.0,91417.0,0.010943]
[1767503231242,0.093,91432.0,91419.0,0.010943]
[1767503233443,0.093,91432.0,91417.0,0.010943]
[1767503238246,0.13251358,91432.0,91417.0,0.010943]
[1767503238442,0.0488191,91431.0,91414.0,0.010944]
[1767503239350,0.010942,91430.0,91414.0,0.010944]
[1767503243548,0.05045558,91430.0,91414.0,0.010944]
[1767503243752,0.03951358,91430.0,91414.0,0.010944]
[1767503245654,0.03951358,91430.0,91416.0,0.010943]
[1767503246156,0.093,91432.0,91413.0,0.00914293]
[1767503246954,0.093,91432.0,91418.0,0.010943]
[1767503250456,0.093,91432.0,91420.0,0.010943]
[1767503250758,0.093,91432.0,91422.0,0.010943]
[1767503251245,0.01094,91442.0,91422.0,0.010943]
[1767503251246,0.00944534,91447.0,91423.0,0.03928588]
[1767503251446,0.03869942,91449.0,91430.0,0.00929478]
[1767503251859,0.04814476,91449.0,91430.0,0.00929478]
[1767503252361,0.04770374,91448.0,91434.0,0.010941]
[1767503252565,0.03815667,91447.0,91431.0,0.010942]
[1767503252747,0.04770374,91447.0,91431.0,0.010942]
[1767503252948,0.04770374,91446.0,91431.0,0.010942]
[1767503253559,0.03815667,91445.0,91431.0,0.010942]
[1767503253954,0.03815667,91445.0,91430.0,0.00016403]
[1767503257162,0.04770374,91445.0,91430.0,0.00016403]
[1767503257861,0.04770374,91445.0,91430.0,0.01110603]
[1767503259562,0.04770374,91444.0,91430.0,0.01110603]
[1767503261670,0.00016403,91449.0,91423.0,0.10275658]
[1767503261671,0.04770374,91439.0,91423.0,0.010942]
[1767503261866,0.04770374,91437.0,91425.0,0.103942]
[1767503262770,0.04770374,91437.0,91427.0,0.010942]
[1767503263566,0.03815667,91437.0,91427.0,0.010942]
[1767503264165,0.03815667,91437.0,91425.0,0.093]
[1767503265362,0.03815667,91437.0,91429.0,0.010942]
[1767503266871,0.00954707,91441.0,91425.0,0.093]
[1767503267068,0.03815667,91442.0,91425.0,0.093]
[1767503268373,0.03815667,91442.0,91432.0,0.010941]
[1767503268667,0.00016403,91449.0,91431.0,0.00971658]
[1767503268870,0.09316403,91449.0,91432.0,0.00971658]
[1767503269770,0.09316403,91449.0,91436.0,0.010941]
[1767503270366,0.1313207,91449.0,91436.0,0.010941]
[1767503271875,0.14086777,91449.0,91436.0,0.010941]
[1767503275377,0.14086777,91449.0,91433.0,0.010941]
[1767503276178,0.05880777,91449.0,91433.0,0.010941]
[1767503276380,0.04770374,91448.0,91433.0,0.010941]
[1767503276883,0.03815667,91447.0,91433.0,0.010941]
[1767503277879,0.04909667,91447.0,91430.0,0.010942]
[1767503278081,0.04770374,91446.0,91430.0,0.010942]
[1767503279286,0.04770374,91446.0,91432.0,0.010941]
[1767503281888,0.04841969,91445.0,91432.0,0.010941]
[1767503282686,0.04841969,91445.0,91434.0,0.010941]
[1767503282886,0.038689,91445.0,91434.0,0.010941]
[1767503294086,0.038689,91445.0,91436.0,0.010941]
[1767503295491,0.038689,91445.0,91433.0,0.010941]
[1767503298392,0.038689,91445.0,91429.0,0.00978262]
[1767503298584,0.00016403,91449.0,91437.0,0.010941]
[1767503299285,0.03885303,91449.0,91437.0,0.010941]
[1767503300998,0.04858372,91449.0,91437.0,0.010941]
[1767503301698,0.03885303,91449.0,91437.0,0.010941]
[1767503306597,0.03885303,91449.0,91439.0,0.010941]
[1767503312312,0.02556238,91448.0,91439.0,0.010941]
[1767503312507,0.02556238,91447.0,91439.0,0.010941]
[1767503312806,0.03885303,91449.0,91439.0,0.010941]
[1767503313005,0.0255624,91448.0,91439.0,0.010941]
[1767503313206,0.0255624,91447.0,91439.0,0.010941]
[1767503313401,0.03885303,91449.0,91439.0,0.010941]
[1767503313607,0.02556232,91448.0,91439.0,0.010941]
[1767503313911,0.02556232,91447.0,91439.0,0.010941]
[1767503314096,0.03885303,91449.0,91439.0,0.010941]
[1767503314298,0.02556235,91448.0,91439.0,0.010941]
[1767503314503,0.02556235,91447.0,91439.0,0.010941]
[1767503314703,0.03885303,91449.0,91439.0,0.010941]
[1767503314905,0.02556226,91448.0,91439.0,0.010941]
[1767503315203,0.02556226,91447.0,91439.0,0.010941]
[1767503315498,0.03885303,91449.0,91439.0,0.010941]
[1767503315705,0.0255622,91448.0,91439.0,0.010941]
[1767503315904,0.0255622,91447.0,91439.0,0.010941]
[1767503316104,0.03885303,91449.0,91439.0,0.010941]
[1767503316404,0.0255622,91448.0,91439.0,0.010941]
[1767503316605,0.0255622,91447.0,91439.0,0.010941]
[1767503316902,0.03885303,91449.0,91439.0,0.010941]
[1767503319302,0.03885303,91449.0,91441.0,0.01094]
[1767503327617,0.04861102,91449.0,91437.0,0.010941]
[1767503327817,0.0513155,91448.0,91437.0,0.010941]
[1767503330910,0.0513155,91448.0,91434.0,0.010941]
[1767503332921,0.0513155,91448.0,91436.0,0.010941]
[1767503337022,0.0513155,91446.0,91436.0,0.010941]
[1767503337326,0.04155751,91446.0,91436.0,0.010941]
[1767503338224,0.04155751,91446.0,91438.0,0.010941]
[1767503345231,0.04155751,91446.0,91435.0,0.010941]
[1767503346332,0.00968279,91445.0,91427.0,0.093]
[1767503346534,0.04961698,91445.0,91437.0,0.010941]
[1767503355139,0.03993419,91445.0,91437.0,0.010941]
[1767503356242,0.03993419,91445.0,91439.0,0.010941]
[1767503357336,0.04961698,91445.0,91439.0,0.010941]
[1767503359443,0.03993419,91445.0,91439.0,0.010941]
[1767503361845,0.00016403,91449.0,91441.0,0.01094]
[1767503362147,0.00968279,91454.0,91441.0,0.01094]
[1767503362333,0.0352415,91453.0,91441.0,0.01094]
[1767503362535,0.02555871,91452.0,91441.0,0.01094]
[1767503363038,0.0352415,91452.0,91441.0,0.01094]
[1767503363243,0.00968279,91458.0,91447.0,0.01094]
[1767503363434,0.02556058,91457.0,91447.0,0.01094]
[1767503363743,0.02556058,91456.0,91447.0,0.01094]
[1767503364041,0.02556058,91455.0,91447.0,0.01094]
[1767503364239,0.02556058,91455.0,91438.0,0.093]
[1767503364240,0.03993419,91460.0,91450.0,0.010939]
[1767503364546,0.00016403,91460.0,91453.0,0.010939]
[1767503365839,0.03993419,91465.0,91453.0,0.010939]
[1767503366036,0.02554236,91464.0,91453.0,0.010939]
[1767503366236,0.02554236,91463.0,91453.0,0.010939]
[1767503366545,0.00968279,91468.0,91453.0,0.010939]
[1767503366748,0.04212074,91469.0,91453.0,0.010939]
[1767503366749,0.03521833,91467.0,91453.0,0.010939]
[1767503366940,0.02553554,91466.0,91453.0,0.010939]
[1767503367243,0.02553554,91465.0,91453.0,0.010939]
[1767503367444,0.00968279,91467.0,91453.0,0.010939]
[1767503367637,0.02552947,91466.0,91453.0,0.010939]
[1767503367836,0.02552947,91465.0,91453.0,0.010939]
[1767503368044,0.00968279,91467.0,91453.0,0.010939]
[1767503368346,0.02552989,91466.0,91453.0,0.010939]
[1767503368646,0.04212074,91469.0,91456.0,0.010939]
[1767503368837,0.02552542,91468.0,91456.0,0.010939]
[1767503369040,0.02552542,91467.0,91456.0,0.010939]
[1767503369341,0.05180353,91469.0,91456.0,0.010939]
[1767503369545,0.02552104,91468.0,91456.0,0.010939]
[1767503369843,0.02552104,91467.0,91456.0,0.010939]
[1767503370045,0.05180353,91469.0,91456.0,0.010939]
[1767503370243,0.02551792,91468.0,91456.0,0.010939]
[1767503370446,0.02551792,91467.0,91456.0,0.010939]
[1767503370646,0.05180353,91469.0,91456.0,0.010939]
[1767503370847,0.00906756,91467.0,91452.0,0.010939]
[1767503371048,0.00906756,91466.0,91452.0,0.010939]
[1767503373746,0.00913826,91461.0,91449.0,0.010939]
[1767503373951,0.00913826,91456.0,91449.0,0.093]
[1767503374267,0.00913826,91456.0,91449.0,0.03328347]
[1767503374441,0.0392412,91465.0,91449.0,0.03328347]
[1767503374841,0.0392412,91465.0,91448.0,0.093]
[1767503375240,0.0392412,91463.0,91442.0,0.00016403]
[1767503375752,0.0392412,91458.0,91442.0,0.01110403]
[1767503376143,0.0392412,91458.0,91444.0,0.01094]
[1767503376751,0.0392412,91458.0,91442.0,0.00016403]
[1767503377037,0.0392412,91458.0,91445.0,0.01094]
[1767503382359,0.010938,91466.0,91444.0,0.05053324]
[1767503383464,0.010938,91466.0,91447.0,0.01094]
[1767503386871,0.010938,91464.0,91448.0,0.05053324]
[1767503387168,0.07111038,91460.0,91446.0,0.01094]
[1767503387368,0.11035158,91460.0,91446.0,0.01094]
[1767503389679,0.0392412,91460.0,91446.0,0.01094]
[1767503391374,0.0392412,91460.0,91443.0,0.10394]
[1767503394684,0.11035158,91460.0,91443.0,0.10394]
[1767503398787,0.0392412,91460.0,91445.0,0.01094]
[1767503398989,0.11035158,91460.0,91445.0,0.01094]
[1767503399280,0.010938,91462.0,91445.0,0.01094]
[1767503399781,0.0501792,91465.0,91445.0,0.01094]
[1767503399987,0.02557048,91464.0,91445.0,0.01094]
[1767503400188,0.0501792,91465.0,91447.0,0.01094]
[1767503400390,0.02557079,91464.0,91447.0,0.01094]
[1767503400586,0.0501792,91465.0,91447.0,0.01094]
[1767503400785,0.04342729,91463.0,91447.0,0.01094]
[1767503401092,0.03248929,91462.0,91447.0,0.01094]
[1767503401287,0.07111038,91460.0,91447.0,0.01094]
[1767503401484,0.03248929,91462.0,91447.0,0.01094]
[1767503402090,0.010938,91461.0,91444.0,0.01094]
[1767503402792,0.010938,91459.0,91444.0,0.01094]
[1767503403894,0.10359967,91460.0,91444.0,0.01094]
[1767503406497,0.11453767,91460.0,91444.0,0.01094]
[1767503409800,0.11453767,91460.0,91443.0,0.093]
[1767503410791,0.11453767,91460.0,91443.0,0.10394]
[1767503412404,0.02557074,91459.0,91443.0,0.10394]
[1767503412704,0.11453767,91460.0,91443.0,0.10394]
[1767503412894,0.02555434,91459.0,91443.0,0.10394]
[1767503413203,0.08204838,91460.0,91443.0,0.10394]
[1767503413402,0.02555427,91459.0,91443.0,0.10394]